bitfinex/quotes_BTCUSD_20241202
["timestamp","ask_amount","ask_price","bid_price","bid_amount"]
[1733162873851,0.01784913,95340.0,95339.0,0.10420129]
[1733162874078,0.0351095,95340.0,95339.0,0.20597515]
[1733162874293,0.0351095,95340.0,95339.0,0.20411907]
[1733162874818,0.0351095,95340.0,95339.0,0.20811907]
[1733162875057,0.0351095,95340.0,95339.0,0.2099752]
[1733162875498,0.0351095,95340.0,95339.0,0.2179752]
[1733162875723,0.0351095,95340.0,95339.0,0.21611907]
[1733162876391,0.0351095,95340.0,95339.0,0.11434521]
[1733162876852,0.0351095,95340.0,95339.0,0.65624521]
[1733162881887,0.1851095,95340.0,95339.0,0.65624521]
[1733162882105,0.21347215,95340.0,95339.0,0.012]
[1733162882390,0.26287215,95340.0,95339.0,0.012]
[1733162884045,0.26287215,95340.0,95339.0,0.008]
[1733162884266,0.26287215,95340.0,95339.0,0.009]
[1733162884492,0.26287215,95340.0,95339.0,0.001]
[1733162884708,0.02836265,95329.0,95317.0,0.00185661]
[1733162884926,0.02836265,95329.0,95318.0,0.1676769]
[1733162885142,0.15,95327.0,95318.0,0.1676769]
[1733162885379,0.15,95323.0,95318.0,0.1676769]
[1733162885595,0.15,95321.0,95318.0,0.1676769]
[1733162886033,0.15,95321.0,95318.0,0.10284521]
[1733162886271,0.209819,95320.0,95318.0,0.10284521]
[1733162886493,0.2266,95319.0,95318.0,0.10284521]
[1733162886708,0.25496265,95319.0,95318.0,0.10284521]
[1733162886979,0.25496265,95319.0,95318.0,0.10884521]
[1733162887427,0.25496265,95319.0,95318.0,0.10284521]
[1733162887682,0.15,95319.0,95318.0,0.11420261]
[1733162887905,0.15,95326.0,95318.0,0.12120261]
[1733162888116,0.15,95326.0,95319.0,0.0018567]
[1733162888332,0.15,95326.0,95320.0,0.10470191]
[1733162889035,0.02836265,95329.0,95320.0,0.10470191]
[1733162889256,0.15,95330.0,95321.0,0.01177881]
[1733162889473,0.15,95328.0,95322.0,0.10284521]
[1733162889693,0.15,95326.0,95322.0,0.10284521]
[1733162889917,0.209808,95325.0,95322.0,0.10284521]
[1733162890208,0.209812,95323.0,95322.0,0.10284521]
[1733162890443,0.359812,95323.0,95322.0,0.10284521]
[1733162890925,0.209817,95321.0,95320.0,0.008]
[1733162891179,0.359817,95321.0,95320.0,0.11984521]
[1733162891394,0.359817,95321.0,95320.0,0.11084521]
[1733162892090,0.359817,95321.0,95320.0,0.10284521]
[1733162892788,0.359817,95321.0,95320.0,0.11184521]
[1733162893016,0.441917,95321.0,95320.0,0.11184521]
[1733162893241,0.47027965,95321.0,95320.0,0.014]
[1733162893466,0.51787965,95321.0,95320.0,0.014]
[1733162894179,0.489517,95321.0,95320.0,0.11684521]
[1733162894408,0.01784913,95340.0,95320.0,0.11684521]
[1733162894409,0.209801,95329.0,95320.0,0.11684521]
[1733162894625,0.0496,95334.0,95321.0,0.10284521]
[1733162894626,0.209811,95324.0,95321.0,0.10284521]
[1733162894858,0.38817765,95322.0,95321.0,0.10284521]
[1733162895338,0.15,95322.0,95321.0,0.10284521]
[1733162895805,0.17836265,95322.0,95321.0,0.10284521]
[1733162896029,0.17836265,95322.0,95321.0,0.008]
[1733162896247,0.02836265,95319.0,95318.0,0.0017284]
[1733162896993,0.569634,95321.0,95318.0,0.10457361]
[1733162897209,0.569634,95321.0,95319.0,0.10284521]
[1733162897420,0.59799665,95321.0,95319.0,0.10284521]
[1733162898133,0.02836265,95320.0,95319.0,0.10284521]
[1733162898386,0.209817,95321.0,95319.0,0.10284521]
[1733162898606,0.15,95320.0,95319.0,0.10284521]
[1733162899049,0.15,95320.0,95319.0,0.11184521]
[1733162899704,0.01763088,95322.0,95319.0,0.12573223]
[1733162899924,0.01763088,95322.0,95320.0,0.00185662]
[1733162900145,0.209795,95332.0,95321.0,0.10284521]
[1733162900360,0.02836265,95330.0,95321.0,0.10284521]
[1733162900603,0.209795,95332.0,95322.0,0.00185659]
[1733162900832,0.209795,95332.0,95323.0,0.64474521]
[1733162901051,0.209795,95332.0,95322.0,0.00185659]
[1733162901052,0.01718302,95333.0,95326.0,0.10284521]
[1733162901294,0.01718302,95333.0,95324.0,0.54375658]
[1733162901295,0.01718302,95333.0,95327.0,0.10470163]
[1733162901512,0.02836265,95338.0,95327.0,0.10284521]
[1733162901747,0.209793,95333.0,95327.0,0.10284521]
[1733162901955,0.209784,95336.0,95327.0,0.10284521]
[1733162902172,0.03548485,95340.0,95327.0,0.10284521]
[1733162902391,0.02836265,95337.0,95327.0,0.10284521]
[1733162902612,0.02836265,95337.0,95328.0,0.5419]
[1733162902832,0.18548485,95340.0,95329.0,0.10284521]
[1733162902833,0.02836265,95330.0,95329.0,0.10284521]
[1733162903047,0.209796,95331.0,95329.0,0.10284521]
[1733162903289,0.17836265,95330.0,95329.0,0.10284521]
[1733162903513,0.15,95330.0,95329.0,0.10284521]
[1733162903964,0.17836265,95330.0,95329.0,0.10284521]
[1733162904456,0.17836265,95330.0,95329.0,0.11184521]
[1733162904677,0.1954771,95330.0,95329.0,0.10284521]
[1733162904880,0.1954771,95330.0,95329.0,0.10884521]
[1733162905594,0.1954771,95330.0,95329.0,0.11584521]
[1733162905831,0.1954771,95330.0,95329.0,0.10984521]
[1733162906049,0.1954771,95330.0,95329.0,0.11384521]
[1733162907418,0.1954771,95330.0,95329.0,0.011]
[1733162908123,0.3225771,95330.0,95329.0,0.011]
[1733162908576,0.3225771,95330.0,95329.0,0.007]
[1733162908800,0.3225771,95330.0,95329.0,0.002]
[1733162909266,0.3225771,95330.0,95329.0,0.006]
[1733162909787,0.3225771,95330.0,95329.0,0.004]
[1733162910018,0.3225771,95330.0,95329.0,0.005]
[1733162910491,0.3225771,95330.0,95329.0,0.10384521]
[1733162910724,0.3225771,95330.0,95329.0,0.10684521]
[1733162911188,0.29421445,95330.0,95329.0,0.10684521]
[1733162911415,0.3225771,95330.0,95329.0,0.10684521]
[1733162912373,0.3225771,95330.0,95329.0,0.004]
[1733162913595,0.29421445,95330.0,95329.0,0.004]
[1733162914046,0.29421445,95330.0,95329.0,0.001]
[1733162914284,0.3225771,95330.0,95319.0,0.0017284]
[1733162914511,0.02836265,95322.0,95320.0,0.10284521]
[1733162914761,0.38817965,95321.0,95320.0,0.10284521]
[1733162915659,0.38817965,95321.0,95320.0,0.10984521]
[1733162916153,0.38817965,95321.0,95320.0,0.11384521]
[1733162916393,0.38817965,95321.0,95320.0,0.011]
[1733162917083,0.38817965,95321.0,95320.0,0.004]
[1733162917316,0.38817965,95321.0,95320.0,0.012]
[1733162917540,0.359817,95321.0,95320.0,0.10684521]
[1733162917760,0.38817965,95321.0,95320.0,0.10684521]
[1733162917980,0.38817965,95321.0,95320.0,0.10884521]
[1733162917981,0.359817,95321.0,95320.0,0.10884521]
[1733162918209,0.38817965,95321.0,95320.0,0.10884521]
[1733162918448,0.209809,95325.0,95320.0,0.12424829]
[1733162918709,0.2098,95329.0,95321.0,0.10284521]
[1733162918948,0.01711445,95330.0,95328.0,0.10284521]
[1733162919183,0.01711445,95330.0,95324.0,0.5419]
[1733162919184,0.01784913,95340.0,95329.0,0.1047016]
[1733162919410,0.01739317,95332.0,95330.0,0.08466016]
[1733162919636,0.01784913,95340.0,95331.0,0.10470155]
[1733162919860,0.01784913,95340.0,95334.0,0.10284521]
[1733162919861,0.01865267,95339.0,95334.0,0.10284521]
[1733162920089,0.0008642,95339.0,95336.0,0.5419]
[1733162920315,0.0008642,95339.0,95338.0,0.64474521]
[1733162921698,0.0008642,95339.0,95338.0,0.65374521]
[1733162922139,0.0008642,95339.0,95338.0,0.65774521]
[1733162922615,0.0008642,95339.0,95338.0,0.64874521]
[1733162923725,0.0008642,95339.0,95338.0,0.64474521]
[1733162923946,0.0008642,95339.0,95338.0,0.65374521]
[1733162924164,0.0008642,95339.0,95338.0,0.6946384]
[1733162924600,0.0008642,95339.0,95338.0,0.6856384]
[1733162924898,0.0008642,95339.0,95338.0,0.6946384]
[1733162925128,0.0008642,95339.0,95338.0,0.6856384]
[1733162925347,0.0008642,95339.0,95338.0,0.6946384]
[1733162926104,0.0008642,95339.0,95338.0,0.7036384]
[1733162926362,0.20021355,95355.0,95338.0,0.7036384]
[1733162926363,0.0218509,95355.0,95347.0,0.409759]
[1733162926615,0.00728714,95355.0,95354.0,0.30284521]
[1733162928049,0.00728714,95355.0,95354.0,0.31184521]
[1733162928798,0.00728714,95355.0,95354.0,0.32084521]
[1733162929773,0.00728714,95355.0,95354.0,0.49248256]
[1733162930040,0.0008624,95378.0,95363.0,0.2]
[1733162930265,0.0008624,95378.0,95375.0,0.5419]
[1733162930498,0.0008624,95378.0,95376.0,0.10470071]
[1733162930739,0.0008624,95378.0,95377.0,0.5419]
[1733162930740,0.01831124,95378.0,95377.0,0.5419]
[1733162930961,0.01831124,95378.0,95377.0,0.72656902]
[1733162931221,0.0008624,95378.0,95377.0,0.72656902]
[1733162931693,0.00103862,95378.0,95377.0,0.72656902]
[1733162932152,0.00103862,95378.0,95377.0,0.73356902]
[1733162932378,0.00103862,95378.0,95377.0,0.74256902]
[1733162932599,0.00103862,95378.0,95377.0,0.73356902]
[1733162933051,0.00103862,95378.0,95377.0,0.74256902]
[1733162933578,0.00103862,95378.0,95377.0,0.73556902]
[1733162933840,0.00103862,95378.0,95377.0,0.74456902]
[1733162938548,0.00103862,95378.0,95377.0,0.73556902]
[1733162938776,0.00103862,95378.0,95377.0,0.72656902]
[1733162939045,0.00103862,95378.0,95377.0,0.73556902]
[1733162939267,0.00103862,95378.0,95377.0,0.65374521]
[1733162939739,0.00103862,95378.0,95377.0,0.66274521]
[1733162939973,0.00103862,95378.0,95377.0,0.86274521]
[1733162940190,0.0008624,95397.0,95382.0,0.2]
[1733162940440,0.0008624,95397.0,95396.0,0.64474521]
[1733162941147,0.0008624,95397.0,95396.0,0.84474521]
[1733162941372,0.0008624,95397.0,95396.0,0.94757667]
[1733162942084,0.0008624,95397.0,95396.0,0.95657667]
[1733162942772,0.0008624,95397.0,95396.0,0.75657667]
[1733162943218,0.0008624,95397.0,95396.0,0.65374521]
[1733162943437,0.0008624,95397.0,95396.0,0.66174521]
[1733162945880,0.0831624,95397.0,95396.0,0.66174521]
[1733162946336,0.11152505,95397.0,95396.0,0.11184521]
[1733162946590,0.26152505,95397.0,95396.0,0.11984521]
[1733162947060,0.26152505,95397.0,95396.0,0.11184521]
[1733162947257,0.26152505,95397.0,95396.0,0.10284521]
[1733162947508,0.26152505,95397.0,95396.0,0.11984521]
[1733162947767,0.26152505,95397.0,95396.0,0.13012973]
[1733162948057,0.26152505,95397.0,95396.0,0.12112973]
[1733162948306,0.26152505,95397.0,95396.0,0.014]
[1733162948991,0.26152505,95397.0,95396.0,0.006]
[1733162949213,0.26152505,95397.0,95396.0,0.11184521]
[1733162949442,0.0008624,95397.0,95396.0,0.11184521]
[1733162949665,0.0008624,95397.0,95396.0,0.12302973]
[1733162951100,0.0008624,95397.0,95396.0,0.11702973]
[1733162951591,0.0008624,95397.0,95396.0,0.12602973]
[1733162952128,0.0008624,95397.0,95396.0,0.67692973]
[1733162952381,0.0008624,95397.0,95396.0,0.65892973]
[1733162952630,0.0008624,95397.0,95396.0,0.66492973]
[1733162953118,0.0008624,95397.0,95396.0,0.67192973]
[1733162953558,0.0008624,95397.0,95396.0,0.66492973]
[1733162953806,0.0008624,95397.0,95396.0,0.65592973]
[1733162954040,0.0008624,95397.0,95396.0,0.66192973]
[1733162954256,0.0008624,95397.0,95396.0,0.67092973]
[1733162954985,0.0008624,95397.0,95396.0,0.66192973]
[1733162955228,0.0008624,95397.0,95396.0,0.67092973]
[1733162960362,0.30602505,95397.0,95396.0,0.65974521]
[1733162960624,0.2776624,95397.0,95396.0,0.65974521]
[1733162960891,0.0008641,95406.0,95396.0,0.65974521]
[1733162961120,0.0008641,95406.0,95405.0,0.51247721]
[1733162961862,0.0008641,95406.0,95405.0,0.54512918]
[1733162962117,0.0008641,95406.0,95405.0,0.43832864]
[1733162963795,0.0008641,95406.0,95405.0,0.44732864]
[1733162964252,0.0008641,95406.0,95405.0,0.45632864]
[1733162964488,0.0008641,95406.0,95405.0,0.44732864]
[1733162964931,0.0008641,95406.0,95405.0,0.45632864]
[1733162965380,0.0008641,95406.0,95405.0,0.62796599]
[1733162966537,0.0008641,95406.0,95405.0,0.45632864]
[1733162966749,0.0008641,95406.0,95405.0,0.62796599]
[1733162966976,0.0008641,95406.0,95405.0,1.20786064]
[1733162967189,0.0008641,95406.0,95405.0,0.99822864]
[1733162967373,0.0008641,95406.0,95405.0,1.20786064]
[1733162968838,0.0008641,95406.0,95405.0,0.79822864]
[1733162970524,0.0008641,95406.0,95405.0,0.69539718]
[1733162970991,0.0008641,95406.0,95405.0,0.66274521]
[1733162971934,0.02922675,95406.0,95405.0,0.12084521]
[1733162972152,0.02922675,95406.0,95405.0,0.018]
[1733162972153,0.25452675,95406.0,95405.0,0.018]
[1733162972821,0.25452675,95406.0,95405.0,0.009]
[1733162973038,0.25452675,95406.0,95405.0,0.017]
[1733162973480,0.25452675,95406.0,95405.0,0.009]
[1733162973969,0.15,95400.0,95395.0,0.10470047]
[1733162974196,0.15,95400.0,95396.0,0.0495367]
[1733162974685,0.0761641,95406.0,95396.0,0.05139195]
[1733162974686,0.0008641,95406.0,95396.0,0.05139195]
[1733162974920,0.0008641,95406.0,95397.0,0.00185509]
[1733162975151,0.0008641,95406.0,95398.0,0.00185506]
[1733162975390,0.0008641,95406.0,95399.0,0.00185506]
[1733162975603,0.0008641,95406.0,95405.0,0.10284521]
[1733162975859,0.0008641,95406.0,95405.0,0.10470009]
[1733162976823,0.0008641,95406.0,95405.0,0.13733596]
[1733162977463,0.0008641,95406.0,95405.0,0.14633596]
[1733162977672,0.0008641,95406.0,95405.0,0.11370009]
[1733162977883,0.0008641,95406.0,95405.0,0.20815586]
[1733162978821,0.0008641,95406.0,95405.0,0.19915586]
[1733162979039,0.0008641,95406.0,95405.0,0.75005586]
[1733162979269,0.0008641,95406.0,95405.0,0.74820098]
[1733162983142,0.0008642,95416.0,95405.0,0.74820098]
[1733162983143,0.02842265,95444.0,95421.0,0.2]
[1733162983369,6e-05,95444.0,95434.0,0.10284521]
[1733162983590,0.00145152,95435.0,95434.0,0.64659943]
[1733162983811,0.00145152,95435.0,95434.0,0.64474521]
[1733162985825,0.00145152,95435.0,95434.0,0.10284521]
[1733162986533,0.08155152,95435.0,95434.0,0.11184521]
[1733162986747,0.09942666,95435.0,95434.0,0.12084521]
[1733162986956,0.09942666,95435.0,95434.0,0.10284521]
[1733162987174,0.09942666,95435.0,95434.0,0.11184521]
[1733162987404,0.09942666,95435.0,95434.0,0.12084521]
[1733162987616,0.09942666,95435.0,95434.0,0.11184521]
[1733162988058,0.09942666,95435.0,95434.0,0.12084521]
[1733162988501,0.09942666,95435.0,95434.0,0.11184521]
[1733162988742,0.09942666,95435.0,95434.0,0.11984521]
[1733162989214,0.27778931,95435.0,95434.0,0.11984521]
[1733162990553,0.48735531,95435.0,95434.0,0.11984521]
[1733162991442,0.27778931,95435.0,95434.0,0.13182973]
[1733162991672,0.48735531,95435.0,95434.0,0.11984521]
[1733162992327,0.48735531,95435.0,95434.0,0.017]
[1733162993905,0.48735531,95435.0,95434.0,0.012]
[1733162994140,0.53295531,95435.0,95434.0,0.012]
[1733162995030,0.53295531,95435.0,95434.0,0.004]
[1733162995261,0.53295531,95435.0,95397.0,0.0008636]
[1733162995262,0.02836265,95419.0,95399.0,0.54375483]
[1733162995513,0.02836265,95419.0,95411.0,0.10284521]
[1733162995961,0.209612,95415.0,95412.0,0.5419]
[1733162996173,0.209612,95415.0,95413.0,0.10284521]
[1733162996868,0.209612,95415.0,95414.0,0.5419]
[1733162997082,0.01757064,95415.0,95414.0,0.64474521]
[1733162997307,0.01757064,95415.0,95414.0,0.70921973]
[1733162997522,0.209608,95416.0,95414.0,0.70921973]
[1733162997744,0.209608,95416.0,95415.0,0.10284521]
[1733162998007,0.288208,95416.0,95415.0,0.10284521]
[1733162998452,0.0786,95416.0,95415.0,0.10284521]
[1733162998927,0.0178659,95417.0,95415.0,0.10284521]
[1733162999160,0.0178659,95417.0,95416.0,0.01208452]
[1733162999382,0.02836265,95419.0,95416.0,0.10284521]
[1733162999614,0.04609228,95419.0,95417.0,0.10284521]
[1733162999841,0.01772963,95419.0,95417.0,0.10284521]
[1733163000073,0.15,95423.0,95418.0,0.10284521]
[1733163000309,0.16722471,95423.0,95422.0,0.10284521]
[1733163000559,0.01722471,95423.0,95422.0,0.10284521]
[1733163001032,0.02836265,95425.0,95422.0,0.10284521]
[1733163001239,0.15,95431.0,95423.0,0.10284521]
[1733163002203,0.02836265,95427.0,95423.0,0.10284521]
[1733163002674,0.02836265,95427.0,95423.0,0.11184521]
[1733163003151,0.15,95426.0,95424.0,0.5419]
[1733163003377,0.15,95426.0,95425.0,0.10284521]
[1733163004093,0.15,95426.0,95425.0,0.16911973]
[1733163004312,0.15,95426.0,95425.0,0.10284521]
[1733163004544,0.15,95426.0,95425.0,0.11184521]
[1733163005263,0.15,95426.0,95425.0,0.12084521]
[1733163005823,0.23794765,95427.0,95425.0,0.12084521]
[1733163005824,0.02836265,95427.0,95425.0,0.12084521]
[1733163006133,0.23794765,95427.0,95426.0,0.05745516]
[1733163006357,0.38794765,95427.0,95426.0,0.10284521]
[1733163007271,0.38794765,95427.0,95416.0,0.5419]
[1733163007272,0.22796265,95416.0,95415.0,0.0008641]
[1733163007489,0.22796265,95416.0,95415.0,0.10370931]
[1733163008179,0.1996,95416.0,95415.0,0.10370931]
[1733163008424,0.17836265,95416.0,95415.0,0.10370931]
[1733163008642,0.01782785,95416.0,95415.0,0.12308024]
[1733163008897,0.0461905,95416.0,95415.0,0.10970931]
[1733163009123,0.17836265,95416.0,95415.0,0.10970931]
[1733163010021,0.38797065,95416.0,95415.0,0.10370931]
[1733163010267,0.38897065,95416.0,95415.0,0.11970931]
[1733163010483,0.38797065,95416.0,95415.0,0.11070931]
[1733163010736,0.38797065,95416.0,95415.0,0.11270931]
[1733163010737,0.38897065,95416.0,95415.0,0.11270931]
[1733163011218,0.38897065,95416.0,95415.0,0.11970931]
[1733163011466,0.40645253,95416.0,95415.0,0.11970931]
[1733163011685,0.40545253,95416.0,95415.0,0.10370931]
[1733163011917,0.40645253,95416.0,95415.0,0.11270931]
[1733163012177,0.40645253,95416.0,95415.0,0.11970931]
[1733163012401,0.48975253,95416.0,95415.0,0.0168641]
[1733163012675,0.53895253,95416.0,95415.0,0.0168641]
[1733163013465,0.16748188,95416.0,95415.0,0.10370931]
[1733163013716,0.01848188,95416.0,95415.0,0.13008024]
[1733163014163,0.001,95416.0,95415.0,0.13008024]
[1733163014614,0.001,95416.0,95415.0,0.66498024]
[1733163014876,0.01754304,95425.0,95415.0,0.66398024]
[1733163015098,0.0017278,95434.0,95424.0,0.10284521]
[1733163015314,0.0017278,95434.0,95432.0,0.5419]
[1733163015536,0.01882395,95434.0,95433.0,0.10284521]
[1733163015758,0.0017278,95434.0,95433.0,0.10284521]
[1733163017450,0.0017278,95434.0,95433.0,0.11184521]
[1733163017677,0.0017278,95434.0,95433.0,0.17721973]
[1733163017916,0.0017278,95434.0,95433.0,0.18607418]
[1733163018138,0.0017278,95434.0,95433.0,0.17707418]
[1733163018618,6e-05,95444.0,95433.0,0.72797418]
[1733163018837,6e-05,95444.0,95443.0,0.10284521]
[1733163019055,0.00023614,95444.0,95443.0,0.10469929]
[1733163019748,0.00017614,95445.0,95444.0,0.209546]
[1733163019969,0.00017614,95445.0,95444.0,0.31424521]
[1733163020196,0.00017614,95445.0,95444.0,0.10284521]
[1733163020416,0.00017614,95445.0,95444.0,0.20753065]
[1733163021080,0.00017614,95445.0,95444.0,0.10284521]
[1733163021349,0.00017614,95445.0,95444.0,0.12269936]
[1733163021581,0.00017614,95445.0,95444.0,0.12084521]
[1733163022464,0.00017614,95445.0,95444.0,0.66274521]
[1733163022684,0.04599349,95445.0,95444.0,0.65374521]
[1733163022902,0.02853879,95445.0,95444.0,0.65374521]
[1733163023124,0.02853879,95445.0,95444.0,0.64474521]
[1733163023355,0.02853879,95445.0,95444.0,0.65374521]
[1733163023596,0.02853879,95445.0,95444.0,0.66274521]
[1733163023876,0.02853879,95445.0,95444.0,0.65374521]
[1733163024578,0.00017614,95445.0,95444.0,0.64474521]
[1733163024795,0.02853879,95445.0,95444.0,0.64474521]
[1733163025014,0.02853879,95445.0,95444.0,0.65074521]
[1733163025452,0.02853879,95445.0,95444.0,0.65173411]
[1733163025940,0.02853879,95445.0,95444.0,0.66073411]
[1733163026676,0.00017614,95445.0,95444.0,0.72682514]
[1733163027123,0.00017614,95445.0,95444.0,0.18492514]
[1733163027340,0.00017614,95445.0,95444.0,0.11883411]
[1733163028802,0.00017614,95445.0,95444.0,0.12068839]
[1733163029025,0.00017614,95445.0,95444.0,0.11168839]
[1733163029259,0.00017614,95445.0,95444.0,0.12068839]
[1733163029493,0.00017614,95445.0,95444.0,0.10568839]
[1733163029744,0.00017614,95445.0,95444.0,0.13327484]
[1733163029969,0.00017614,95445.0,95444.0,0.13142056]
[1733163030210,0.00017614,95445.0,95444.0,0.65632056]
[1733163030463,0.00017614,95445.0,95444.0,0.66532056]
[1733163030691,0.00017614,95445.0,95444.0,0.67432056]
[1733163031714,0.00017614,95445.0,95444.0,0.92422056]
[1733163031959,0.00017614,95445.0,95444.0,1.09585791]
[1733163032202,0.00017614,95445.0,95444.0,1.09780381]
[1733163032446,0.00017614,95445.0,95444.0,1.36500753]
[1733163032671,0.00017614,95445.0,95444.0,1.11238438]
[1733163032910,0.00017614,95445.0,95444.0,1.13038438]
[1733163033136,0.00017614,95445.0,95444.0,1.35600753]
[1733163033364,0.00017614,95445.0,95444.0,1.12138438]
[1733163033594,0.00017614,95445.0,95444.0,1.09780381]
[1733163033824,0.00017614,95445.0,95444.0,1.1123561]
[1733163034050,0.00017614,95445.0,95444.0,1.1303561]
[1733163034282,0.0759,95498.0,95471.0,0.5419]
[1733163034523,0.209436,95495.0,95473.0,0.10382741]
[1733163034762,0.01702191,95483.0,95473.0,0.10568098]
[1733163035706,0.01702191,95483.0,95473.0,0.10573637]
[1733163035943,0.00103981,95474.0,95473.0,0.10573637]
[1733163036467,0.00103981,95474.0,95473.0,0.11473637]
[1733163036708,0.00103981,95474.0,95473.0,0.76846783]
[1733163036929,0.00103981,95474.0,95473.0,0.6637828]
[1733163037412,0.29372081,95474.0,95473.0,0.1218828]
[1733163038130,0.47208346,95474.0,95473.0,0.1218828]
[1733163038379,0.47208346,95474.0,95473.0,0.12182741]
[1733163038612,0.47208346,95474.0,95473.0,0.0189822]
[1733163038847,0.52158346,95474.0,95473.0,0.018]
[1733163039321,0.02836265,95454.0,95451.0,0.5419]
[1733163039553,0.209527,95453.0,95452.0,0.10284521]
[1733163039792,0.359527,95453.0,95452.0,0.10284521]
[1733163040021,0.46868965,95453.0,95452.0,0.10284521]
[1733163040756,0.0808,95465.0,95452.0,0.14546016]
[1733163041004,0.01724163,95458.0,95457.0,0.10284521]
[1733163041238,0.02836265,95468.0,95457.0,0.10284521]
[1733163041468,0.209496,95467.0,95458.0,0.01454602]
[1733163041698,0.17836265,95468.0,95466.0,0.10284521]
[1733163041699,0.01780401,95468.0,95466.0,0.10284521]
[1733163041936,0.01780401,95468.0,95467.0,0.10284521]
[1733163042169,0.00103981,95474.0,95467.0,0.64474521]
[1733163042402,0.00103981,95474.0,95473.0,0.10284521]
[1733163042641,0.00103981,95474.0,95473.0,0.70921973]
[1733163043779,0.00103981,95474.0,95473.0,0.72621973]
[1733163044386,0.0008636,95493.0,95475.0,0.209478]
[1733163044598,0.0008636,95493.0,95492.0,0.64572581]
[1733163044813,0.0008636,95493.0,95492.0,0.71029839]
[1733163045949,0.0008636,95493.0,95492.0,0.71929839]
[1733163046407,0.0008636,95493.0,95492.0,0.72829839]
[1733163047104,0.0008636,95493.0,95492.0,0.71929839]
[1733163048028,0.0008636,95493.0,95492.0,0.71029839]
[1733163048267,0.0008636,95493.0,95492.0,0.71929839]
[1733163049193,0.0008636,95493.0,95492.0,0.71029839]
[1733163049420,0.0008636,95493.0,95492.0,0.72829839]
[1733163053292,0.0008636,95493.0,95492.0,0.66372581]
[1733163053769,0.0015904,95502.0,95492.0,0.66372581]
[1733163054000,0.0015904,95502.0,95501.0,0.10284521]
[1733163054457,0.0015904,95502.0,95501.0,0.10437423]
[1733163055660,0.0015904,95502.0,95501.0,0.11337423]
[1733163056154,0.0015904,95502.0,95501.0,0.12471165]
[1733163056603,0.0015904,95502.0,95501.0,0.13371165]
[1733163056819,0.0015904,95502.0,95501.0,0.12237423]
[1733163057062,0.07505305,95502.0,95501.0,0.12237423]
[1733163057309,0.07505305,95502.0,95492.0,0.5428806]
[1733163057310,0.38780165,95493.0,95492.0,0.0009806]
[1733163058959,0.38780165,95493.0,95492.0,0.0059806]
[1733163059434,0.38780165,95493.0,95492.0,0.0009806]
[1733163059683,0.38780165,95493.0,95473.0,0.00103951]
[1733163059684,0.15,95492.0,95473.0,0.00103951]
[1733163059926,0.359481,95474.0,95473.0,0.00103951]
[1733163060187,0.15,95492.0,95473.0,0.00103951]
[1733163060188,0.459354,95532.0,95521.0,2.65883449]
[1733163060412,0.209375,95522.0,95521.0,2.33982049]
[1733163060657,0.209375,95522.0,95521.0,2.21942049]
[1733163060877,0.209375,95522.0,95521.0,2.08972049]
[1733163061584,0.20955101,95522.0,95521.0,2.08972049]
[1733163062034,0.32139622,95522.0,95521.0,2.09072049]
[1733163062284,0.46239622,95522.0,95521.0,2.08972049]
[1733163062518,0.46239622,95522.0,95521.0,1.96816064]
[1733163062773,0.46239622,95522.0,95521.0,1.86447064]
[1733163062774,5.63200535,95522.0,95521.0,1.86447064]
[1733163062985,5.64270039,95522.0,95521.0,1.86447064]
[1733163063217,2.82650535,95522.0,95521.0,1.86347064]
[1733163063442,3.05850535,95522.0,95521.0,1.86347064]
[1733163063697,3.06920039,95522.0,95521.0,1.86347064]
[1733163063942,3.05850535,95522.0,95521.0,1.77971864]
[1733163064159,3.05850535,95522.0,95521.0,1.75878064]
[1733163064381,2.61239622,95522.0,95521.0,1.75878064]
[1733163064605,0.46739622,95522.0,95521.0,1.75878064]
[1733163064826,0.46739622,95522.0,95521.0,1.65409064]
[1733163064827,0.47809126,95522.0,95521.0,1.65409064]
[1733163065080,5.52309126,95522.0,95521.0,1.65409064]
[1733163065295,5.53109126,95522.0,95521.0,1.65509064]
[1733163065522,5.53209126,95522.0,95521.0,1.44540153]
[1733163065771,5.53209126,95522.0,95521.0,1.17290442]
[1733163066008,2.97709126,95522.0,95521.0,1.17290442]
[1733163066256,1.86209126,95522.0,95521.0,1.17450599]
[1733163066471,0.48709126,95522.0,95521.0,1.17450599]
[1733163066692,0.48709126,95522.0,95521.0,1.17350599]
[1733163066693,0.20955101,95522.0,95521.0,1.17350599]
[1733163067215,0.01717601,95522.0,95521.0,1.17450599]
[1733163068124,0.01717601,95522.0,95521.0,1.2773512]
[1733163068363,0.00817601,95522.0,95521.0,1.2773512]
[1733163068587,0.00717601,95522.0,95521.0,1.2763512]
[1733163068828,0.00517601,95522.0,95521.0,1.2763512]
[1733163069307,0.00117601,95522.0,95521.0,1.2763512]
[1733163069547,0.00017601,95522.0,95521.0,1.2763512]
[1733163069821,0.00117601,95522.0,95521.0,1.2763512]
[1733163070061,0.00117601,95522.0,95521.0,1.2793512]
[1733163070288,0.00117601,95522.0,95521.0,1.17650599]
[1733163071619,0.00017601,95522.0,95521.0,1.17350599]
[1733163071853,0.00117601,95522.0,95521.0,1.17450599]
[1733163072071,0.00017601,95522.0,95521.0,1.17450599]
[1733163072311,0.00017601,95522.0,95521.0,1.17350599]
[1733163072532,0.00117601,95522.0,95521.0,1.17350599]
[1733163072849,0.00117601,95522.0,95521.0,1.17450599]
[1733163074452,0.00203921,95522.0,95521.0,1.17450599]
[1733163076132,0.15203921,95522.0,95521.0,1.17450599]
[1733163079091,0.25488442,95522.0,95521.0,1.17350599]
[1733163080400,0.25388442,95522.0,95521.0,1.17350599]
[1733163080806,0.25688442,95522.0,95521.0,1.17350599]
[1733163081235,0.26757946,95522.0,95521.0,1.08975399]
[1733163081489,0.26757946,95522.0,95521.0,1.0651258]
[1733163081698,5.31871015,95522.0,95521.0,1.0651258]
[1733163081938,0.44406449,95522.0,95521.0,1.0651258]
[1733163082136,0.25701511,95522.0,95521.0,1.06352423]
[1733163082351,0.25701511,95522.0,95521.0,1.06502181]
[1733163082699,0.40723437,95522.0,95521.0,1.06502181]
[1733163082803,0.26601511,95522.0,95521.0,1.06502181]
[1733163083058,0.40423569,95522.0,95521.0,1.06502181]
[1733163083282,0.26471015,95522.0,95521.0,1.06502181]
[1733163083500,5.46322703,95522.0,95521.0,0.9563829]
[1733163083740,5.33271015,95522.0,95521.0,0.9145069]
[1733163083958,5.32371015,95522.0,95521.0,0.85019532]
[1733163084438,3.70171015,95522.0,95521.0,0.85019532]
[1733163084679,3.69271015,95522.0,95521.0,0.82825732]
[1733163084907,3.70171015,95522.0,95521.0,0.74550532]
[1733163085123,3.88775953,95522.0,95521.0,0.74550532]
[1733163085571,3.68371015,95522.0,95521.0,0.74450532]
[1733163085806,3.68371015,95522.0,95521.0,0.63981532]
[1733163085807,3.87875706,95522.0,95521.0,0.63981532]
[1733163086019,3.70171015,95522.0,95521.0,0.64081532]